bitfinex/quotes_ETHUSD_20251023
["timestamp","ask_amount","ask_price","bid_price","bid_amount"]
[1761234946451,0.001,3883.8,3883.7,2.57486417]
[1761234948041,0.001,3883.8,3883.6,2.57491049]
[1761234948342,0.001,3883.8,3883.4,5.9230458]
[1761234948838,0.001,3883.8,3883.5,2.57498298]
[1761234949043,0.001,3883.8,3883.6,2.57492279]
[1761234949539,0.001,3883.8,3883.4,3.348]
[1761234949930,0.001,3883.8,3883.6,2.57492675]
[1761234950438,0.001,3883.8,3883.5,0.4715]
[1761234950643,0.001,3883.8,3883.4,3.348]
[1761234951214,0.001,3883.8,3883.4,5.92305856]
[1761234952322,0.001,3883.8,3883.5,2.57497821]
[1761234952530,0.001,3883.8,3883.4,3.8195]
[1761234952722,0.001,3883.8,3883.5,3.30588021]
[1761234953055,0.001,3883.8,3883.4,3.348]
[1761234953230,0.1012,3883.8,3883.1,0.9142426]
[1761234953549,2.57493815,3883.6,3882.9,4.13055041]
[1761234953749,0.1012,3883.8,3882.9,1.5552]
[1761234953923,2.5752259,3883.2,3882.9,1.5552]
[1761234954130,0.1002,3883.7,3882.9,1.5552]
[1761234954323,2.57515379,3883.3,3882.9,1.5552]
[1761234954746,2.5751582,3883.3,3882.9,1.5552]
[1761234954953,2.57520044,3883.2,3882.9,1.5552]
[1761234955344,2.57440044,3883.2,3882.9,1.5552]
[1761234955730,2.70320044,3883.2,3882.9,1.5552]
[1761234956143,2.57527723,3883.1,3882.9,1.5552]
[1761234956462,2.57532835,3883.0,3882.9,1.5552]
[1761234956663,2.57528538,3883.1,3882.9,1.5552]
[1761234956964,2.70400448,3883.2,3882.9,1.5552]
[1761234957560,2.57526368,3883.1,3882.9,1.5552]
[1761234957729,2.57526368,3883.1,3882.8,3.347]
[1761234958368,2.57526368,3883.1,3882.5,1.684]
[1761234958664,2.57533976,3883.0,3882.5,1.684]
[1761234958852,2.57528819,3883.1,3882.5,1.684]
[1761234959356,2.57533618,3883.0,3882.5,1.684]
[1761234959849,0.1136,3882.9,3882.5,1.5552]
[1761234960076,2.70431901,3882.8,3882.5,1.5552]
[1761234960277,0.1288,3882.8,3882.5,1.5552]
[1761234960478,2.57554026,3882.7,3882.4,0.002]
[1761234960780,0.1288,3882.8,3882.4,0.002]
[1761234960968,0.1288,3882.8,3882.4,0.432]
[1761234961282,2.70426587,3882.8,3882.4,0.002]
[1761234961577,0.1288,3882.8,3882.4,0.002]
[1761234961882,0.2421,3882.9,3882.4,0.1308]
[1761234962050,2.57566001,3882.5,3882.4,0.002]
[1761234962251,2.57533128,3883.0,3882.4,0.432]
[1761234962452,0.1288,3882.9,3882.4,0.5608]
[1761234962849,0.1288,3882.9,3882.4,3.13652537]
[1761234963089,0.1288,3882.9,3882.4,0.5608]
[1761234963381,0.1288,3882.9,3882.4,0.002]
[1761234963382,2.81916001,3882.5,3882.4,0.002]
[1761234963555,6.26536001,3882.5,3882.4,0.002]
[1761234964782,1.5552,3883.6,3882.4,0.002]
[1761234965084,3.26615391,3883.7,3882.4,0.002]
[1761234965085,2.57566001,3882.5,3882.4,0.002]
[1761234965644,3.347,3882.7,3882.4,0.002]
[1761234965889,3.347,3883.5,3882.5,0.2171]
[1761234966048,3.347,3883.5,3882.5,0.6471]
[1761234966250,0.001,3883.8,3883.7,2.57486417]
[1761234966478,0.001,3883.8,3883.7,9.60738319]
[1761234966798,0.001,3883.8,3883.7,10.06518407]
[1761234966994,0.001,3883.8,3883.7,8.69314059]
[1761234967283,0.001,3883.8,3883.7,5.34614059]
[1761234967507,0.001,3883.8,3883.7,8.82318871]
[1761234968382,0.001,3883.8,3883.7,9.74089813]
[1761234968690,0.001,3883.8,3883.7,8.82318871]
[1761234969888,0.001,3883.8,3883.7,2.7518406]
[1761234970075,0.1014,3883.8,3882.8,0.91744418]
[1761234970386,0.001,3883.8,3882.7,3.347]
[1761234970566,0.001,3883.8,3882.8,1.5552]
[1761234970762,0.001,3883.8,3882.7,3.347]
[1761234971084,2.57486417,3883.7,3882.4,0.002]
[1761234971314,2.57486417,3883.7,3882.4,4.13291349]
[1761234971315,2.57526184,3883.2,3882.4,4.13291349]
[1761234971596,2.57538308,3883.0,3882.4,0.002]
[1761234971797,2.57538308,3883.0,3882.4,1.5572]
[1761234971981,0.1147,3882.9,3882.4,0.002]
[1761234972180,0.001,3883.8,3882.4,0.002]
[1761234972181,0.001,3883.8,3883.6,0.50688]
[1761234972490,2.57510864,3883.4,3882.5,0.91847688]
[1761234972669,3.5123,3883.7,3882.6,0.34135242]
[1761234972868,3.5123,3883.7,3882.6,3.0055755]
[1761234973069,2.57493047,3883.6,3882.6,3.0055755]
[1761234973269,0.1573,3883.7,3882.4,3.357]
[1761234973503,2.57498049,3883.6,3882.9,2.57536881]
[1761234973675,0.001,3883.8,3882.7,0.50688]
[1761234973997,2.57488121,3883.7,3883.0,2.57526648]
[1761234974601,2.57581058,3883.8,3882.8,2.57544521]
[1761234974806,0.1288,3883.5,3882.9,0.1288]
[1761234975030,0.1288,3883.5,3882.9,2.70418429]
[1761234975182,0.1298,3883.8,3883.2,0.1288]
[1761234975504,0.1298,3883.8,3883.2,2.70399538]
[1761234975873,2.57505348,3883.5,3882.7,2.57550934]
[1761234976091,0.1006,3883.8,3882.7,0.76268462]
[1761234976303,2.5749503,3883.6,3882.9,1.5552]
[1761234976798,2.57509636,3883.4,3882.9,1.5552]
[1761234977006,0.1006,3883.8,3882.7,0.76268462]
[1761234977007,2.57501799,3883.5,3882.8,1.5552]
[1761234977394,2.67540539,3883.8,3882.7,0.76268462]
[1761234977573,2.57504901,3883.5,3882.8,2.57544776]
[1761234977775,2.57492659,3883.7,3882.8,4.92054039]
[1761234977975,0.1006,3883.8,3882.9,1.5552]
[1761234978300,2.57490925,3883.7,3883.0,2.57527466]
[1761234978893,0.001,3883.8,3883.0,2.57527466]
[1761234978894,0.001,3883.8,3883.2,2.57519571]
[1761234979095,0.001,3883.8,3883.2,2.57513184]
[1761234979393,0.001,3883.8,3883.3,0.93688]
[1761234979620,0.001,3883.8,3883.7,3.08174417]
[1761234979923,0.0002,3883.8,3883.7,3.08174417]
[1761234980093,0.0002,3883.8,3883.7,3.51174417]
[1761234981193,0.0002,3883.8,3883.7,5.06694417]
[1761234981394,0.0002,3883.8,3883.7,6.1664379]
[1761234981624,0.0002,3883.8,3883.7,7.08491478]
[1761234983522,0.0002,3883.8,3883.7,6.1664379]
[1761234985304,0.0002,3883.8,3883.7,7.08172196]
[1761234985509,0.0002,3883.8,3883.7,9.5144379]
[1761234985725,0.0002,3883.8,3883.7,10.94495249]
[1761234985931,0.0002,3883.8,3883.7,11.07375249]
[1761234986305,0.0002,3883.8,3883.7,7.72575249]
[1761234986637,0.0002,3883.8,3883.7,11.07275249]
[1761234987137,0.0002,3883.8,3883.7,5.74468507]
[1761234987434,0.0002,3883.8,3883.7,6.72336507]
[1761234991511,0.0002,3883.8,3883.7,7.63875249]
[1761234992620,0.0002,3883.8,3883.7,6.72336507]
[1761234992846,0.0002,3883.8,3883.7,10.06936507]
[1761234993042,0.0002,3883.8,3883.7,6.72336507]
[1761234993230,0.0002,3883.8,3883.7,10.98475249]
[1761234993547,0.0002,3883.8,3883.7,9.5542379]
[1761234994215,0.0002,3883.8,3883.7,10.46962532]
[1761234995617,0.0002,3883.8,3883.7,9.5542379]
[1761234997040,0.0002,3883.8,3883.7,6.3370379]
[1761234997241,0.0002,3883.8,3883.7,9.2112379]
[1761234997450,0.0002,3883.8,3883.7,10.12859704]
[1761234997748,0.0002,3883.8,3883.7,10.57760894]
[1761234998515,0.0002,3883.8,3883.7,7.23160894]
[1761234998750,0.0002,3883.8,3883.7,10.57760894]
[1761235000157,0.0002,3883.8,3883.7,9.6602379]
[1761235000451,0.0002,3883.8,3883.7,5.08117373]
[1761235000624,0.0002,3883.8,3883.7,8.11174417]
[1761235001022,0.0002,3883.8,3883.7,6.55654417]
[1761235001347,0.0002,3883.8,3883.7,8.11174417]
[1761235002415,0.0002,3883.8,3883.7,1.684]
[1761235002751,0.0002,3883.8,3883.7,4.9012]
[1761235002752,0.1001,3883.8,3883.7,4.9012]
[1761235003748,0.1001,3883.8,3883.7,1.5552]
[1761235003949,0.0002,3883.8,3883.7,1.5552]
[1761235004320,0.2539,3885.5,3883.8,2.06208]
[1761235004620,10.3147,3886.0,3884.8,0.50688]
[1761235004821,0.099,3885.9,3885.0,1.5552]
[1761235005025,0.099,3885.9,3885.3,1.5552]
[1761235005255,0.099,3885.9,3885.4,3.346]
[1761235005554,2.67240838,3885.9,3885.4,3.346]
[1761235005853,0.099,3885.8,3885.4,3.346]
[1761235006020,2.57353887,3885.7,3884.8,0.91713602]
[1761235006350,2.57364856,3885.6,3884.9,7.47526103]
[1761235006752,2.67261363,3885.6,3884.9,7.47526723]
[1761235006954,2.57368338,3885.5,3884.9,4.9012]
[1761235007155,0.099,3885.5,3884.6,0.91713602]
[1761235007453,0.2539,3885.4,3884.2,2.47233602]
[1761235007654,2.57418516,3884.8,3884.2,2.47233602]
[1761235008256,2.57388333,3885.2,3884.3,0.91713602]
[1761235008460,2.57426762,3884.6,3884.0,0.91713602]
[1761235008658,2.57451842,3884.3,3883.8,3.345]
[1761235009066,2.78371842,3884.3,3883.8,3.345]
[1761235009277,0.2092,3884.3,3883.8,3.345]
[1761235009477,0.1113,3883.9,3883.8,4.9002]
[1761235010266,0.1113,3883.9,3883.8,3.345]
[1761235010955,0.2103,3883.9,3883.8,3.345]
[1761235011154,0.2103,3883.9,3883.8,4.9002]
[1761235011979,0.1113,3883.9,3883.8,1.5552]
[1761235013289,0.2103,3883.9,3883.8,1.5552]
[1761235014291,0.001,3884.3,3883.8,1.5552]
[1761235014582,0.1288,3884.0,3883.8,1.5552]
[1761235015472,0.001,3884.3,3883.8,1.5552]
[1761235015676,0.1288,3884.2,3883.8,4.12998833]
[1761235015873,0.1288,3884.2,3883.8,1.5552]
[1761235016053,0.1288,3884.2,3883.8,4.12999489]
[1761235016242,0.1288,3884.2,3883.8,1.5552]
[1761235016455,0.001,3884.3,3883.9,2.57466946]
[1761235016680,0.001,3884.3,3884.2,2.57453272]
[1761235017065,0.001,3884.3,3884.2,2.70333272]
[1761235019379,0.001,3884.3,3884.2,5.94095959]
[1761235021192,0.001,3884.3,3884.2,7.31867491]
[1761235021499,0.001,3884.3,3884.2,5.94095959]
[1761235022202,0.001,3884.3,3884.2,7.31867491]
[1761235022404,0.001,3884.3,3884.2,5.94095959]
[1761235023001,0.001,3884.3,3884.2,5.81215959]
[1761235023590,0.001,3884.3,3884.2,2.47290372]
[1761235023923,0.001,3884.3,3884.2,7.47473272]
[1761235024276,0.001,3884.3,3884.2,8.39218887]
[1761235024479,0.001,3884.3,3884.2,1.5552]
[1761235024981,0.001,3884.3,3884.2,7.47473272]
[1761235026189,0.001,3884.3,3884.2,4.9002]
[1761235026387,0.001,3884.3,3884.2,3.345]
[1761235026586,0.1017,3884.3,3883.8,2.47265615]
[1761235026923,0.1017,3884.3,3883.6,0.002]
[1761235026924,0.1112,3883.9,3883.6,0.002]
[1761235027124,0.1112,3883.9,3883.7,5.91986136]
[1761235027283,0.1112,3883.9,3883.8,1.5552]
[1761235027483,2.57546775,3884.3,3883.8,1.5052]
[1761235027682,0.001,3884.3,3883.9,3.345]
[1761235027915,0.1,3884.3,3883.9,3.345]
[1761235028110,0.1,3884.3,3883.9,3.34322958]
[1761235028284,0.001,3884.3,3883.9,3.34322958]
[1761235028482,0.001,3884.3,3883.9,5.9179611]
[1761235028716,0.001,3884.3,3883.7,0.91745615]
[1761235028919,0.001,3884.3,3883.8,3.345]
[1761235028920,0.0002,3884.3,3883.8,3.345]
[1761235029120,2.5746693,3884.0,3883.6,0.002]
[1761235029320,2.57461921,3884.1,3883.7,3.345]
[1761235029631,2.57477434,3883.9,3883.8,3.345]
[1761235029805,0.2109,3884.0,3883.8,3.345]
[1761235029990,0.2109,3884.0,3883.8,3.347]
[1761235032214,2.78559535,3884.0,3883.8,3.347]
[1761235032415,2.78559535,3884.0,3883.8,0.002]
[1761235032610,2.78563158,3883.9,3883.8,0.002]
[1761235035545,2.78563158,3883.9,3883.6,0.0048]
[1761235035546,4.13006417,3883.7,3883.6,1e-08]
[1761235035930,4.22906417,3883.7,3883.6,1e-08]
[1761235039527,2.57506308,3883.4,3883.3,1e-08]
[1761235039763,5.92006308,3883.4,3883.3,1e-08]
[1761235039960,7.57426308,3883.4,3883.3,1e-08]
[1761235042624,4.13026308,3883.4,3883.3,1e-08]
[1761235042833,7.57426308,3883.4,3883.3,1e-08]
[1761235043763,7.70306308,3883.4,3883.3,1e-08]
[1761235043963,6.14786308,3883.4,3883.3,1e-08]
[1761235046077,6.04886308,3883.4,3883.3,1e-08]
[1761235046438,6.14786308,3883.4,3883.3,1e-08]
[1761235048444,6.14886308,3883.4,3883.3,1e-08]
[1761235048778,7.57526308,3883.4,3883.3,1e-08]
[1761235053356,7.57446308,3883.4,3883.3,1e-08]
[1761235055963,8.08134308,3883.4,3883.3,1e-08]
[1761235056981,4.13092635,3882.4,3882.3,1e-08]
[1761235057293,7.98280635,3882.4,3882.3,1e-08]
[1761235057485,8.19540635,3882.4,3882.3,1e-08]
[1761235057674,2.57625721,3881.6,3881.5,0.002]
[1761235057889,7.98333721,3881.6,3881.5,0.002]
[1761235058059,8.19593721,3881.6,3881.5,0.002]
[1761235058671,8.32473721,3881.6,3881.5,0.002]
[1761235059095,4.13145721,3881.6,3881.5,0.002]
[1761235059394,4.26025721,3881.6,3881.5,0.002]
[1761235059560,7.60525721,3881.6,3881.5,0.002]
[1761235060164,2.57625721,3881.6,3881.5,0.002]
[1761235062608,2.57620518,3881.7,3881.5,0.002]
[1761235062905,2.57620518,3881.7,3881.5,0.4721]
[1761235062906,2.57623696,3881.7,3881.5,0.4721]
[1761235063070,2.57599175,3882.0,3881.5,0.4721]
[1761235063502,2.57617194,3881.8,3881.5,0.4721]
[1761235063796,3.345,3882.1,3881.5,0.4721]
[1761235063998,2.57617043,3881.8,3881.5,0.4721]
[1761235064295,3.345,3882.1,3881.5,0.4721]
[1761235064594,2.57613777,3881.8,3881.5,0.4721]
[1761235065103,2.57620391,3881.7,3881.5,0.4721]
[1761235065711,2.57614837,3881.8,3881.5,0.4721]
[1761235066385,3.345,3882.1,3881.5,0.4721]
[1761235066714,2.57617513,3881.8,3881.5,0.4721]
[1761235066916,2.5760824,3881.9,3881.5,0.4721]
[1761235067415,2.5770824,3881.9,3881.5,0.4721]
[1761235067615,0.001,3881.9,3881.5,0.4721]
[1761235067919,2.5761288,3881.8,3881.5,0.4721]
[1761235068301,2.57712279,3881.9,3881.5,0.4721]
[1761235068507,2.57617108,3881.8,3881.5,0.4721]
[1761235069084,2.57620118,3881.7,3881.5,0.4721]
[1761235069507,2.5761488,3881.8,3881.5,0.4721]
[1761235069911,12.11524247,3881.6,3881.1,1e-08]
[1761235070114,4.13172272,3881.2,3881.1,1e-08]
[1761235070317,8.70189097,3881.2,3881.1,1e-08]
[1761235070518,8.80139097,3881.2,3881.1,1e-08]
[1761235070718,8.25801847,3881.2,3881.1,1e-08]
[1761235072319,8.76489847,3881.2,3881.1,1e-08]
[1761235072525,9.58526672,3881.2,3881.1,1e-08]
[1761235073125,2.57725316,3880.1,3879.6,0.002]
[1761235073342,5.92225316,3880.1,3879.6,0.002]
[1761235074302,7.47745316,3880.1,3879.6,0.002]
[1761235075435,5.92225316,3880.1,3880.0,0.4721]
[1761235076018,5.92225316,3880.1,3880.0,0.002]
[1761235077035,2.57725316,3880.1,3880.0,0.4721]
[1761235077216,5.92225316,3880.1,3880.0,0.4721]
[1761235077920,5.92145316,3880.1,3880.0,0.4721]
[1761235079323,5.92145316,3880.1,3880.0,0.002]
[1761235080460,5.92145316,3880.1,3880.0,0.4296]
[1761235080648,3.345,3880.1,3880.0,0.4296]
[1761235080856,5.92225316,3880.1,3880.0,0.4296]
[1761235081952,2.57723457,3880.2,3880.0,0.4296]
[1761235082168,2.57725316,3880.1,3880.0,0.4296]
[1761235082657,2.57725316,3880.1,3880.0,0.002]
[1761235083062,2.70605316,3880.1,3880.0,0.002]
[1761235083254,2.70605316,3880.1,3880.0,0.4296]
[1761235083454,2.70605316,3880.1,3880.0,0.002]
[1761235084092,2.70605316,3880.1,3880.0,0.4296]
[1761235085896,2.70605316,3880.1,3880.0,0.002]
[1761235086065,2.70605316,3880.1,3880.0,0.4296]
[1761235086460,2.70605316,3880.1,3880.0,0.002]
[1761235088809,2.70605316,3880.1,3880.0,0.4296]
[1761235088981,2.70605316,3880.1,3880.0,0.002]
[1761235090066,2.70605316,3880.1,3880.0,0.4296]
[1761235090267,0.1288,3880.1,3880.0,0.4296]
[1761235091108,2.70605316,3880.1,3880.0,0.4296]
[1761235091266,2.70605316,3880.1,3880.0,0.002]
[1761235092295,2.57725316,3880.1,3880.0,0.002]
[1761235093698,4.13245316,3880.1,3880.0,0.002]
[1761235093903,4.23255316,3880.1,3880.0,0.002]
[1761235094230,4.78612052,3880.1,3880.0,0.002]
[1761235094391,4.23255316,3880.1,3880.0,0.002]
[1761235095219,2.57725316,3880.1,3880.0,0.002]
[1761235095387,5.92225316,3880.1,3880.0,0.002]
[1761235096321,2.57725316,3880.1,3880.0,0.4296]
[1761235096620,5.92225316,3880.1,3880.0,0.4296]
[1761235096832,2.5770311,3880.5,3880.0,0.4296]
[1761235097033,5.92203021,3880.5,3880.1,0.2337]
[1761235097321,3.345,3880.5,3880.1,0.2337]
[1761235097526,2.57725316,3880.1,3880.0,0.002]
[1761235097818,5.92225316,3880.1,3880.0,0.002]
[1761235098814,6.47702919,3880.1,3880.0,0.002]
[1761235099749,5.92225316,3880.1,3880.0,0.002]
[1761235101647,2.57725316,3880.1,3880.0,0.002]
[1761235101850,5.92225316,3880.1,3880.0,0.002]
[1761235102345,6.05025316,3880.1,3880.0,0.002]
[1761235102726,6.05125316,3880.1,3880.0,0.002]
[1761235103115,2.70625316,3880.1,3880.0,0.002]
[1761235103320,6.05125316,3880.1,3880.0,0.4296]
[1761235103936,6.05125316,3880.1,3880.0,0.002]
[1761235106776,6.60683084,3880.1,3880.0,0.002]
[1761235108331,6.05125316,3880.1,3880.0,0.002]
[1761235109844,6.60681311,3880.1,3880.0,0.002]
[1761235110147,6.05125316,3880.1,3880.0,0.002]
[1761235111463,6.05025316,3880.1,3880.0,0.002]
[1761235112871,6.05025316,3880.1,3880.0,0.4763]
[1761235119584,2.70625316,3880.1,3880.0,0.4763]
[1761235119785,6.04925316,3880.1,3880.0,0.4763]
[1761235120590,6.04925316,3880.1,3880.0,0.002]
[1761235122202,6.04925316,3880.1,3880.0,0.4763]
[1761235124212,3.4728,3880.1,3880.0,0.4763]
[1761235124397,6.05005316,3880.1,3880.0,0.4763]
[1761235124974,6.05005316,3880.1,3880.0,0.002]
[1761235126709,6.05005316,3880.1,3880.0,0.4763]
[1761235127008,2.70705316,3880.1,3880.0,0.4763]
[1761235127519,0.1298,3880.1,3880.0,0.4763]
[1761235127895,2.70705316,3880.1,3880.0,0.4763]
[1761235129723,2.70705316,3880.1,3880.0,0.002]
[1761235130311,0.1298,3880.1,3880.0,0.4763]
[1761235130516,2.70705316,3880.1,3880.0,0.4763]
[1761235131235,0.1298,3880.1,3880.0,0.4763]
[1761235131401,2.70705316,3880.1,3880.0,0.4763]
[1761235132898,2.70705316,3880.1,3880.0,0.002]
[1761235133926,2.70705316,3880.1,3880.0,0.4763]
[1761235134134,2.70705316,3880.1,3880.0,0.002]
[1761235138256,2.80765316,3880.1,3880.0,0.002]
[1761235139351,3.36349747,3880.1,3880.0,0.002]
[1761235141368,3.36349747,3880.1,3877.5,0.4681]
[1761235141369,3.97869417,3879.2,3877.5,0.4681]
[1761235141658,2.57838062,3878.5,3878.0,0.6992]
[1761235141957,2.5783626,3878.5,3878.0,0.6992]
[1761235142159,2.5784979,3878.3,3878.1,0.4681]
[1761235142332,2.5785158,3878.2,3878.1,0.4681]
[1761235142532,2.5783626,3878.5,3878.1,0.4681]
[1761235142533,2.57845342,3878.3,3878.1,0.4681]
[1761235142942,3.34,3878.8,3878.1,0.4681]
[1761235143162,5.91813668,3878.8,3878.1,0.4681]
[1761235143365,2.57808665,3878.9,3878.2,0.32777939]
[1761235143531,3.34,3879.0,3878.2,0.32777939]
[1761235143859,2.57819539,3878.7,3878.3,0.4681]
[1761235144433,3.34,3879.0,3878.3,0.4681]
[1761235144652,3.34,3879.1,3878.3,0.4681]
[1761235145180,3.34,3879.8,3878.8,2.57810373]
[1761235145468,3.34,3879.8,3878.9,0.98373447]
[1761235145666,2.57772438,3879.4,3879.0,0.4681]
[1761235145960,2.57779622,3879.3,3879.0,0.4681]
[1761235146263,2.57779622,3879.3,3879.1,0.2302]
[1761235146631,2.5778511,3879.2,3879.1,0.2302]
[1761235147159,3.34,3879.8,3879.1,0.6983]
[1761235147352,2.5778511,3879.2,3879.1,0.6983]
[1761235147548,2.57780617,3879.3,3879.1,0.2302]
[1761235147758,2.57780617,3879.3,3879.2,0.4681]
[1761235148266,2.57776326,3879.4,3879.2,0.4681]
[1761235148428,3.34,3879.8,3879.2,0.4681]
[1761235148934,2.57772569,3879.4,3879.2,0.4681]
[1761235149260,2.57766243,3879.5,3879.2,0.4681]
[1761235149466,2.57759715,3879.6,3879.2,0.4681]
[1761235150251,0.001,3880.1,3879.2,0.79573334]
[1761235150437,5.91750034,3879.8,3879.2,0.4681]
[1761235150759,2.57752242,3879.7,3879.3,0.4681]
[1761235151063,5.91746706,3879.8,3879.3,0.4681]
[1761235151266,0.128,3879.7,3879.3,0.4681]
[1761235151769,2.57762994,3879.6,3879.3,0.4681]
[1761235152160,2.57758897,3879.6,3879.3,0.4681]
[1761235152575,0.128,3879.7,3879.1,0.2302]
[1761235152751,0.1288,3879.4,3879.1,0.6983]
[1761235152952,2.5778511,3879.2,3879.1,0.7003]
[1761235153172,2.7066511,3879.2,3879.1,0.2322]
[1761235153874,2.7066511,3879.2,3879.1,0.002]
[1761235155178,2.8074511,3879.2,3879.1,0.002]
[1761235155347,2.5778511,3879.2,3879.1,0.002]
[1761235155547,5.9168511,3879.2,3879.1,0.2322]
[1761235156174,5.9168511,3879.2,3879.1,0.002]
[1761235158396,2.57805047,3878.9,3878.8,0.002]
[1761235158570,4.13325047,3878.9,3878.8,0.002]
[1761235158771,4.90298712,3878.9,3878.8,0.002]
[1761235159995,3.34778712,3878.9,3878.8,0.002]
[1761235160571,3.34778712,3878.9,3878.4,1e-08]
[1761235160572,4.13351635,3878.5,3878.4,1e-08]
[1761235160767,11.45121052,3878.5,3878.4,1e-08]
[1761235160995,12.10452451,3878.5,3878.4,1e-08]
[1761235161390,3.13263034,3878.5,3878.4,1e-08]
[1761235161696,2.67731635,3878.5,3878.4,1e-08]
[1761235162785,3.23129146,3878.5,3878.4,1e-08]
[1761235163299,4.79337146,3878.5,3878.4,1e-08]
[1761235164011,5.48806749,3878.5,3878.4,1e-08]
[1761235164188,2.57924737,3877.1,3877.0,0.002]
[1761235164389,9.89694154,3877.1,3877.0,0.002]
[1761235164602,12.6116266,3877.1,3877.0,0.002]
[1761235164974,12.71491224,3877.1,3877.0,0.002]
[1761235165307,4.1347135,3876.7,3876.6,1e-08]
[1761235165491,2.58017906,3875.7,3875.3,0.002]
[1761235166809,2.58013436,3875.8,3875.6,0.4701]
[1761235167018,2.58017906,3875.7,3875.6,0.002]
[1761235167379,2.67927906,3875.7,3875.6,0.002]
[1761235167584,2.90947906,3875.7,3875.6,0.002]
[1761235168004,4.46467906,3875.7,3875.6,0.002]
[1761235168578,4.36557906,3875.7,3875.6,0.002]
[1761235168781,4.13537906,3875.7,3875.6,0.002]
[1761235169216,2.58017906,3875.7,3875.6,0.002]
[1761235170702,2.58017906,3875.7,3875.6,0.472]
[1761235171295,2.5801757,3875.8,3875.6,0.472]
[1761235171517,2.58017906,3875.7,3875.6,0.472]
[1761235171822,2.580124,3875.8,3875.6,0.472]
[1761235172019,2.58017906,3875.7,3875.6,0.472]
[1761235172225,2.58011922,3875.8,3875.6,0.472]
[1761235172389,2.57973897,3876.4,3876.3,0.2218]
[1761235172593,2.57973897,3876.4,3876.3,0.6918]
[1761235172989,2.57973897,3876.4,3876.3,0.2218]
[1761235173195,2.57945169,3876.8,3875.9,0.47]
[1761235173395,2.57997936,3876.0,3875.9,0.47]
[1761235174495,2.57989922,3876.2,3875.9,0.47]
[1761235174690,2.57984624,3876.2,3876.1,0.2218]
[1761235175110,2.57984624,3876.2,3876.1,0.6918]
[1761235175514,2.70864624,3876.2,3876.1,0.6918]
[1761235175924,0.1288,3876.2,3876.1,0.6918]
[1761235176416,2.70864624,3876.2,3876.1,0.6918]
[1761235183939,2.58017906,3875.7,3875.6,0.002]
[1761235187335,2.58017906,3875.7,3875.6,0.472]
[1761235189306,2.57991279,3876.1,3875.6,0.472]
[1761235189511,2.58008925,3875.9,3875.6,0.472]
[1761235189838,0.001,3876.2,3875.6,0.472]
[1761235190017,2.58017906,3875.7,3875.6,0.472]
[1761235190220,0.001,3876.2,3875.6,0.472]
[1761235190428,2.57998322,3876.0,3875.6,0.472]
[1761235191241,2.57998322,3876.0,3875.6,1.13352016]
[1761235191242,2.57998264,3876.0,3875.6,1.13352016]
[1761235191541,2.57992268,3876.1,3875.6,1.13352016]
[1761235191744,2.58085199,3876.2,3875.7,0.47]
[1761235191942,0.001,3876.2,3876.1,0.2218]
[1761235192142,2.58084624,3876.2,3876.1,0.2218]
[1761235192320,0.001,3876.2,3876.1,0.6918]
[1761235194146,0.001,3876.2,3876.1,6.93790254]
[1761235195551,0.001,3876.2,3876.1,7.44478254]
[1761235195715,0.001,3876.2,3876.1,8.99998254]
[1761235200956,0.001,3876.2,3876.1,5.66098254]
[1761235201570,0.001,3876.2,3876.1,3.08106975]
[1761235201886,0.001,3876.2,3876.1,2.75388]
[1761235202656,0.001,3876.2,3876.1,2.247]
[1761235202854,0.001,3876.2,3876.1,5.088]
[1761235203589,0.001,3876.2,3876.1,8.17479279]
[1761235204097,0.001,3876.2,3876.1,8.30359279]
[1761235204302,0.001,3876.2,3876.1,9.39195572]
[1761235206045,0.001,3876.2,3876.1,2.41268]
[1761235206239,0.001,3876.2,3876.1,5.5533]
[1761235206394,0.001,3876.2,3876.1,8.76889279]
[1761235207791,0.001,3876.2,3876.1,5.43189279]
[1761235208189,0.001,3876.2,3876.1,8.76789279]
[1761235208429,0.001,3876.2,3876.1,9.90268563]
[1761235213867,0.001,3876.2,3876.1,6.56668563]
[1761235214034,0.001,3876.2,3876.1,5.01148563]
[1761235214233,0.001,3876.2,3876.1,8.34748563]
[1761235214469,0.001,3876.2,3876.1,9.77388563]
[1761235214672,0.001,3876.2,3876.1,9.90268563]
[1761235216687,0.001,3876.2,3876.1,6.56668563]
[1761235216839,0.001,3876.2,3876.1,9.90268563]
[1761235217036,0.001,3876.2,3876.1,6.12788563]
[1761235217254,0.001,3876.2,3876.1,6.56668563]
[1761235217460,0.001,3876.2,3876.1,9.90168563]
[1761235218771,0.001,3876.2,3876.1,8.34648563]
[1761235218946,0.001,3876.2,3876.1,9.90168563]
[1761235220755,0.001,3876.2,3876.1,6.56668563]
[1761235221169,0.001,3876.2,3876.1,9.90168563]
[1761235222881,0.001,3876.2,3876.1,6.56868563]
[1761235223073,0.001,3876.2,3876.1,9.90368563]
[1761235224602,0.001,3876.2,3876.1,6.56868563]
[1761235224760,0.001,3876.2,3876.1,9.90368563]
[1761235226363,0.001,3876.2,3876.1,6.12988563]
[1761235227012,0.001,3876.2,3876.1,9.46388563]
[1761235227176,0.001,3876.2,3876.1,9.40280563]
[1761235227703,0.001,3876.2,3876.1,9.90968563]
[1761235228268,0.001,3876.2,3876.1,4.77279279]
[1761235228474,0.001,3876.2,3876.1,8.10679279]
[1761235229092,0.001,3876.2,3876.1,8.54549279]
[1761235229293,0.001,3876.2,3876.1,4.77279279]
[1761235229498,0.001,3876.2,3876.1,8.10679279]
[1761235229777,0.001,3876.2,3876.1,9.39647118]
[1761235229987,0.001,3876.2,3876.1,9.83517118]
[1761235231215,0.001,3876.2,3876.1,8.10679279]